Cogmind - Beta 14 @@@ ROGUE MODE // 2024.08.08 @ 20:04:45 Player: DBrickShaw Result: Destroyed by 4J-EBT(R) with Subdweller Laser Performance ------------- Evolutions (0) 0 Regions Visited (2) 400 Robots Destroyed (18) 90 Value Destroyed (437) 437 Prototype IDs (0) 0 Alien Tech Used (0) 0 Bonus (-16) -16 TOTAL SCORE: 911 Bonus ------- Friendly Fire -16 Cogmind --------- Core Integrity 0/250 Matter 300/300 Energy 100/100 System Corruption 0% Temperature Cool (6) Movement Walking (120) Location -10/Subcaves Parts ------- > --- POWER (1) -------- (None) > --- PROPULSION (2) --- Aluminum Leg > --- UTILITY (2) ------ Subdweller Optics Power Shielding > --- WEAPON (2) ------- Makeshift Shrapnel Gun Makeshift Spear > --- INVENTORY (5) ---- Huge Storage Unit Medium Matter Pod (100) Subdweller Laser Beamcaster Light Assault Rifle Peak State ------------ > --- POWER ------------ Neutrino Core > --- PROPULSION ------- Aluminum Leg Carbon-fiber Leg > --- UTILITY ---------- Scrap Shield > --- WEAPON ----------- Subdweller Laser Beamcaster > --- INVENTORY -------- Aluminum Leg Huge Storage Unit Medium Matter Pod Power Shielding Light Assault Rifle [Rating: 21] Favorites ----------- Power Ion Engine Engine Ion Engine Power Core Neutrino Core Propulsion Aluminum Leg Leg Aluminum Leg Utility Small Storage Unit Device Subdweller Optics Storage Small Storage Unit Processor Visual Processing Unit Protection Power Shielding Weapon Light Assault Rifle Energy Gun Particle Gun Ballistic Gun Light Assault Rifle Piercing Weapon Makeshift Spear Build | -11 -10 -10 ------- Run | Yrd Mat Sub Slots Evolved . | . . . Power . | . . . Propulsion . | . . . Utility . | . . . Weapon . | . . . Parts Attached 33 | 7 14 12 Power 3 | 1 1 1 Engine 2 | 1 1 . Core 1 | . . 1 Reactor . | . . . Propulsion 8 | 2 4 2 Treads . | . . . Leg 8 | 2 4 2 Wheel . | . . . Hover . | . . . Flight . | . . . Utility 13 | 2 7 4 Device 3 | 1 1 1 Storage 4 | 1 2 1 Processor 2 | . 2 . Hackware . | . . . Protection 4 | . 2 2 Artifact . | . . . Weapon 9 | 2 2 5 Energy Gun 4 | . 2 2 Energy Cannon . | . . . Ballistic Gun 3 | 2 . 1 Ballistic Cannon . | . . . Launcher . | . . . Special Weapon . | . . . Impact Weapon . | . . . Slashing Weapon . | . . . Piercing Weapon 2 | . . 2 Special Melee Weapon . | . . . Unidentified Prototypes . | . . . Parts Lost 4 | . . 4 Power 1 | . . 1 Propulsion 2 | . . 2 Utility 1 | . . 1 Weapon . | . . . Highest Loss Streak 2 | . . 2 To Critical Strikes . | . . . Average Slot Usage (%) 96 | . 99 92 Engine 8 | . 14 2 Core 5 | . . 11 Leg 27 | . 27 27 Device 4 | . 2 7 Storage 7 | . 14 . Processor 4 | . 8 . Protection 7 | . 2 13 Energy Gun 13 | . 11 16 Ballistic Gun 13 | . 16 10 Peak Build Rating 21 | 9 10 21 Average Rating 12 | 6 8 18 On Entrance 6 | . 9 10 Naked Turns . | . . . Heaviest Build 41 | 13 20 41 Greatest Support 25 | 20 20 25 Greatest Overweight (x) 3 | 3 1 2 Average Overweight (x) . | . . . Largest Inventory Capacity 25 | 8 10 25 Average Capacity 7 | 7 8 5 Most Carried 10 | 7 10 10 Average Carried 6 | 4 8 5 Final Capacity 10 | 8 10 5 Final Carried 10 | 7 10 5 Class Distribution -------------------- 63% | Scavenger-Mutant 36% | Mutant Dominant Class ---------------- Mutant | -10/Materials Scavenger-Mutant | -10/Subcaves Resources | -11 -10 -10 ----------- Run | Yrd Mat Sub Matter Collected 778 | 294 351 133 Remotely . | . . . Salvage Created 852 | 105 539 208 Parts 44 | 8 22 14 Haulers Intercepted 2 | . 2 . Recyclers Shooed . | . . . Parts Field Recycled . | . . . Retrieved Matter . | . . . Parts Self-Destructed 3 | . . 3 Prevented . | . . . Kills | -11 -10 -10 ------- Run | Yrd Mat Sub Combat Hostiles Destroyed 10 | . 5 5 Melee 3 | . . 3 Guns 7 | . 5 2 Classes Destroyed 6 | 3 2 1 Worker 2 | 1 1 . Tunneler 1 | 1 . . Hauler 2 | . 2 . Recycler 3 | 1 2 . Grunt 5 | . 5 . Subdweller 5 | . . 5 Best Kill Streak 3 | 1 3 2 Combat Bots Only 2 | . 2 2 Max Kills in Single Turn 1 | 1 1 1 Gunslinging . | . . . Exploded . | . . . Melee 1 | . . 1 Uniques/NPCs Destroyed . | . . . Combat | -11 -10 -10 -------- Run | Yrd Mat Sub Hostile Shots Fired 102 | . 37 65 Missed 27 | . 9 18 Damage Taken 1328 | . 381 947 Core 260 | . 96 164 Absorbed by Shields . | . . . Redirected to Shielding 34 | . . 34 Core Remaining (%) 100 | 100 . . Volleys Fired 79 | 12 47 20 Largest 2 | 2 2 2 Hottest 135 | 40 85 135 Shots Fired 153 | 24 93 36 Gun 153 | 24 93 36 Cannon . | . . . Launcher . | . . . Special . | . . . Kinetic 96 | 24 64 8 Thermal 57 | . 29 28 Explosive . | . . . Electromagnetic . | . . . Robot Hit Streak 11 | 5 7 11 Robot Miss Streak 3 | 3 3 2 Penetration Max . | . . . Secondary Targets . | . . . Shots Hit Robots 104 | 13 55 36 Core Hits 37 | 5 21 11 Critical Kills . | . . . Critical Parts Destroyed . | . . . Critical Strikes 1 | . . 1 Destroy 1 | . . 1 Melee Attacks 10 | . . 10 Impact . | . . . Slashing . | . . . Piercing 10 | . . 10 Sneak Attacks . | . . . Combat Hostiles . | . . . Follow-up Attacks . | . . . Damage Inflicted 1427 | 116 595 716 Guns 1198 | 116 590 492 Cannons . | . . . Explosions . | . . . Melee 224 | . . 224 Ramming 5 | . 5 . Kinetic 582 | 116 362 104 Thermal 616 | . 228 388 Explosive . | . . . Electromagnetic . | . . . Impact . | . . . Slashing . | . . . Piercing 224 | . . 224 Highest Corruption . | . . . Average Corruption . | . . . Corruption Purged . | . . . Corruption Blocked . | . . . Overload Shots . | . . . Overflow Damage . | . . . Projectiles . | . . . Explosions . | . . . Melee . | . . . Knockbacks . | . . . Impact . | . . . Kinetic . | . . . Secondary . | . . . Self-Inflicted Damage . | . . . Shots . | . . . Rammed . | . . . Targets Rammed 1 | . 1 . Kicked 1 | . 1 . Crushed . | . . . Highest Temperature 222 | . 205 222 Average Temperature 61 | . 56 75 Received Heat Transfer 498 | . 228 270 Effects 1 | . . 1 Interference 1 | . . 1 Siege Activations . | . . . Robots Corrupted . | . . . Combat Hostiles . | . . . Parts Fried . | . . . Impact Corruptions . | . . . Robots Melted . | . . . Combat Hostiles . | . . . Parts Melted 1 | . . 1 Heat Transferred 1186 | . 518 668 Parts Sabotaged . | . . . Parts Stolen . | . . . Parts Stripped . | . . . Power Chain Reactions . | . . . Alert | -11 -10 -10 ------- Run | Yrd Mat Sub Peak Influence 171 | 15 171 . Initial 9 | . 9 . Average 41 | 6 46 . Maximum Alert Level . | . . . Low Security (%) 100 | 100 100 . Level 1 . | . . . Level 2 . | . . . Level 3 . | . . . Level 4 . | . . . Level 5 . | . . . High Security . | . . . Max Security . | . . . Squads Dispatched 2 | . 2 . Investigation 1 | . 1 . Extermination . | . . . Reinforcement 1 | . 1 . Assault . | . . . Garrison . | . . . Intercept . | . . . Searches Triggered . | . . . Construction Impeded . | . . . Haulers Reinforced . | . . . Active Scanning Responses . | . . . Cargo Convoy Interrupts . | . . . Stealth | -11 -10 -10 --------- Run | Yrd Mat Sub Distress Signals 2 | . 2 . Communications Jammed . | . . . Distress Signals . | . . . Times Spotted 25 | . 13 12 Peak Tracking Total 5 | . 3 5 Tactical Retreats 1 | . 1 . Traps | -11 -10 -10 ------- Run | Yrd Mat Sub Traps Triggered 2 | . 2 . Indirectly . | . . . Trap Hack Attempts . | . . . Triggered . | . . . Disarmed . | . . . Reprogrammed . | . . . Reused . | . . . Traps Extracted . | . . . Installed . | . . . Triggered . | . . . Machines | -11 -10 -10 ---------- Run | Yrd Mat Sub Machines Disabled 1 | . 1 . Max in Single Turn 1 | . 1 . Machines Repaired . | . . . Machines Dismantled . | . . . Machines Sabotaged . | . . . Overloaded Fab Kills . | . . . Hacking | -11 -10 -10 --------- Run | Yrd Mat Sub Machines Accessed 8 | . 8 . Terminals 7 | . 7 . Fabricators . | . . . Repair Stations . | . . . Recycling Units 1 | . 1 . Scanalyzers . | . . . Garrison Access . | . . . Total Hacks 25 | . 25 . Successful 11 | . 11 . Failed 14 | . 14 . Catastrophic . | . . . Database Lockouts . | . . . Manual 7 | . 7 . Terminals 22 | . 22 . Fabricators . | . . . Repair Stations . | . . . Recycling Units 3 | . 3 . Scanalyzers . | . . . Garrison Access . | . . . Terminal Hacks 9 | . 9 . Record 5 | . 5 . Robot Analysis 2 | . 2 . Emergency Access Points 1 | . 1 . Zone Layout 1 | . 1 . Fabricator Hacks . | . . . Repair Station Hacks . | . . . Recycling Unit Hacks . | . . . Scanalyzer . | . . . Garrison Access Hacks . | . . . Unauthorized Hacks 2 | . 2 . Terminals . | . . . Fabricators . | . . . Repair Stations . | . . . Recycling Units 2 | . 2 . Reject 1 | . 1 . Mask 1 | . 1 . Scanalyzers . | . . . Garrison Access . | . . . Data Cores Recovered . | . . . Used . | . . . Hacking Detections 7 | . 7 . Full Trace Events . | . . . Feedback Events . | . . . Feedback Blocked . | . . . Robot Schematics Acquired . | . . . Robots Built . | . . . Authchips . | . . . Time . | . . . Total Robot Build Rating . | . . . Part Schematics Acquired . | . . . Parts Built . | . . . Authchips . | . . . Time . | . . . Total Part Build Rating . | . . . Parts Repaired . | . . . Time . | . . . Parts Recycled . | . . . Recycled Matter . | . . . Retrieved Matter . | . . . Retrieved Components . | . . . Parts Scanalyzed . | . . . Part Schematics Acquired . | . . . Parts Damaged . | . . . Bothacking | -11 -10 -10 ------------ Run | Yrd Mat Sub Used RIF Installer . | . . . Robots Hacked . | . . . Non-combat . | . . . Combat . | . . . Robot Hacks Applied . | . . . Relay Couplers Released . | . . . Fabnet Peak Effective % . | . . . Robots Rewired . | . . . Allies Hacked . | . . . Hacks Repelled . | . . . Allies | -11 -10 -10 -------- Run | Yrd Mat Sub Total Allies . | . . . Largest Group . | . . . Highest-Rated Group . | . . . Highest-Rated Ally . | . . . Total Orders . | . . . Ally Attacks . | . . . Total Damage . | . . . Kills . | . . . Allies Corrupted . | . . . Allies Melted . | . . . Intel | -11 -10 -10 ------- Run | Yrd Mat Sub Robot Analysis Total 2 | . 2 . Derelict Logs Recovered . | . . . Drone Launches . | . . . Drone Recoveries . | . . . Exploration | -11 -10 -10 ------------- Run | Yrd Mat Sub Turns Passed 2151 | 158 1074 919 Spaces Moved 1251 | 77 743 431 Core 13 | 13 . . Treads . | . . . Legs 1238 | 64 743 431 Wheels . | . . . Hover . | . . . Flight . | . . . Fastest Speed 50 | 50 120 120 Average Speed 144 | 138 120 187 Slowest Speed 260 | 200 190 260 Overloaded Moves . | . . . Propulsion Burnouts . | . . . Robots Hopped . | . . . Cave-ins Triggered . | . . . Exploration Rate (%) 35 | 5 82 18 Regions Visited 2 Branch Regions 1 Pre-discovered Areas . | . . . Known Exits Taken . | . . . Unknown Exits Taken 2 | 1 1 . Scrap Searched 3 | . . 3 Spaces Dug . | . . . Terrain Destroyed . | . . . Melee . | . . . Projectile . | . . . AOE . | . . . Terrain Rammed . | . . . Walls Destroyed . | . . . Machines Disabled . | . . . Actions | -11 -10 -10 --------- Run | Yrd Mat Sub Total 1448 | 106 844 498 Wait 26 | 4 17 5 Move 1249 | 76 742 431 Hop . | . . . Pick Up 17 | 7 7 3 Fast Attach 20 | 7 6 7 Attach 2 | . . 2 Detach 5 | . 2 3 Swap 11 | . 8 3 Drop 23 | . 14 9 Fire 79 | 12 47 20 Melee 10 | . . 10 Ram . | . . . Kick 1 | . 1 . Crush . | . . . Escape Stasis . | . . . Rewire . | . . . Trap . | . . . Miscellaneous 5 | . . 5 Route ------- -11/Scrapyard -10/Materials (discovered 4 exits: [*Mat x2] / [*Min] / [*Sub]) -10/Subcaves History --------- Turn | Location | Event 16 | -11/Scrapyard | Discovered new exit (range 15) 159 | -11/Scrapyard | Entered Materials 315 | -10/Materials | Build established: Mutant 409 | -10/Materials | Discovered new exit (range 13) 543 | -10/Materials | Discovered new exit (range 10) 719 | -10/Materials | Discovered new exit (range 16) 1201 | -10/Materials | Discovered new exit (range 12) 1233 | -10/Materials | Entered Subcaves 1275 | -10/Subcaves | Build established: Scavenger-Mutant 1320 | -10/Subcaves | Ambushed by swarm of Subdwellers 1418 | -10/Subcaves | Lost 3 allies 1615 | -10/Subcaves | Core integrity fell below 50% 1775 | -10/Subcaves | Ambushed by Subdwellers from Twisted Machinery 2133 | -10/Subcaves | Core integrity fell below 20% 2152 | -10/Subcaves | Destroyed by 4J-EBT(R) with Subdweller Laser Last Messages --------------- 01636_ Scrap Shield destroyed. 01646_ SP-RGW(R) destroyed. 01654_ Sub. Laser melted. 01654_ RN-9UQ(R) destroyed. 01660_ Searching scrap... 01660_ Found Mak. Shrapnel Gun. 01660_ Found 40 Matter. 01661_ Acquired 25 matter. 01664_ Acquired Mak. Shrapnel Gun. 01671_ Acquired Sub. Optics. 01678_ Acquired 20 matter. 01688_ Dropped Mak. Spear. 01688_ Acquired Sub. Power Source. 01691_ Dropped Sub. Power Source. 01692_ Acquired Mak. Spear. 01892_ Subatomizers dissect the Disposable Heat Sink. 02130_ Aluminum Leg destroyed. 02143_ QO-MLX(R) destroyed. 02145_ Acquired 20 matter. 02147_ Neutrino Core destroyed. Map ----- +----------------------------------------------------+ | ???????????????????????????????????????????? | | ???????????????????????????????????????????? | | ???????????????????????????????????????????? | | ???????????????????????????????????????????? | | ???????????????????????????????????????????? | | ???????????????????????????????????????????? | | ????????????????????? ????????????????????? | | ???????????????????? ????????????????????? | | ????????????????????? ???????????????????? | | ????????????????????? ???????????????????? | | ????????????????????? ???##??????????????? | | ????????????????????? ??? ##?????????????? | | ?????????????????????? ??? #?????????????? | | ?????????????????????? ### #?????????????? | | ?????????????????????? ??????????????? | | ?????????????????????? ??????????????? | | ??????????????????????# ??????????????? | | ?????????????????????## #??????????????? | | ?????????????????????? #??????????????? | | ?????????????????????? ??????????????? | | ??????????????????????? #??????????????? | | ??????????????????????? #??????????????? | | ???????????????????????# #??????????????? | | ???????????????????????# #??????????????? | | ??????????????????????## #??????????????? | | ?????????????????????## @ #???????????????? | | ??????????????????# ## #???????????????? | | ???????????????#### *#???????????????? | | ???????????????# !&#???????????????? | | ???????????????# &R##??????????????? | | ???????????????# ##=##?????????????? | | ???????????????# ## ### #?????????????? | | ???????????????# ?#"" #?????????????? | | ???????????????# "??#"" #?????????????? | | ???????????????## "??# ""## #?????????????? | | ????????????????# ""?# ""## #?????????????? | | ????????????????## "## "" ##?????????????? | | ????????????????# " "" #??????????????? | | ????????????????## ##??????????????? | | ????????????????# ## # #??????????????? | | ##?????????????????### #??????????????? | | #?????????????????#### ##??????????????? | | #??????????????????# ## #??????????????? | | #?????????????????## ##??????????????? | | #?????????????????#"" #??????????????? | | #?????????????????## "# ##??????????????? | | #??????????????????# "# ###???????????????? | | #??????????????????# #???????????????? | | #?????????????????## ##???????????????? | | #?????????????????# ###????????????????? | +----------------------------------------------------+ Best States ------------- Heat Dissipation 25 Energy Generation 19 Energy Capacity 315 Matter Stores 300 Matter Capacity 350 Sight Range 21 Terrain Scan Range 16 Terrain Scan Density 10 Armor Coverage 800 Power Shielding 33 Propulsion Shielding 33 Evasion (%) 55 Item Schematics ----------------- None Robot Schematics ------------------ None Fabricated ------------ Nothing Alien Tech Used ----------------- None Achievements -------------- True Hacker Challenges ------------ None Game ------ Seed ThrowingCoolingFlightbrick Manual? 0 Play Time 00:21:41 Cumulative 2.5 hours Start 2024.08.08 @ 19:42:03 End 2024.08.08 @ 20:04:45 Sessions 1 Manual Loads 0 Difficulty Rogue Special Mode None Game No. 5 Rogue 5 Adventurer 0 Explorer 0 Win Type - Total 0 Types 0/0/0/0/0/0/0/0/0 Lore% 3 Gallery% 5 Achievement% 5 Wizard Run 0 Options --------- Layout 0 ASCII 1 Keyboard 0 Movement Mouse Keybinds 0 Fullscreen 1 Font 24/X11 Map View 76x50 Zoom Use 0% Tactical HUD 1 Map Filters NONE Filters NONE Steam 0 RUN: 5fca6ebe-b744-4428-bbe8-a2ebf14e2d6c